bitfinex/quotes_ETHUSD_20250519
["timestamp","ask_amount","ask_price","bid_price","bid_amount"]
[1747664294344,4.08931054,2445.4,2444.6,9.913]
[1747664294545,4.08949085,2445.3,2444.8,4.09021392]
[1747664294855,4.08949085,2445.3,2444.7,4.09048144]
[1747664294856,4.08951142,2445.3,2444.4,4.09098347]
[1747664295038,9.912,2445.5,2444.3,24.412]
[1747664295245,9.912,2445.5,2445.0,4.08981637]
[1747664295415,4.08951695,2445.3,2444.3,24.412]
[1747664295617,9.912,2445.5,2444.3,24.412]
[1747664295618,4.08967409,2445.2,2444.7,4.09047226]
[1747664295813,4.08957355,2445.3,2444.4,4.21875088]
[1747664296059,4.08965459,2445.2,2444.4,0.12777745]
[1747664296214,4.09058943,2444.7,2444.4,0.12777745]
[1747664296414,4.09058943,2444.7,2444.3,0.34152215]
[1747664296415,0.01129817,2444.7,2444.3,0.34152215]
[1747664296641,9.865,2444.6,2444.3,0.34152215]
[1747664296840,4.09098347,2444.4,2444.3,0.34152215]
[1747664297043,5.68648347,2444.4,2444.3,0.34152215]
[1747664297715,1.5955,2444.4,2444.3,0.34152215]
[1747664297920,1.6278,2444.8,2444.4,4.09098347]
[1747664298176,9.862,2445.0,2444.5,4.09077298]
[1747664298358,13.95207675,2445.0,2444.4,0.34150818]
[1747664298735,0.55,2444.9,2444.4,0.34150818]
[1747664298943,4.09081611,2444.5,2444.4,0.34150818]
[1747664299463,13.94581611,2444.5,2444.4,0.34150818]
[1747664300256,9.855,2444.5,2444.4,0.34150818]
[1747664300422,13.94581611,2444.5,2444.0,4.09154464]
[1747664300615,1.5526,2444.4,2443.8,4.09190543]
[1747664300820,5.64366062,2444.4,2443.9,4.09171002]
[1747664301017,1.5526,2444.4,2444.0,4.09163714]
[1747664301249,9.821,2444.4,2444.3,4.09107101]
[1747664301453,9.821,2444.4,2444.2,4.0912378]
[1747664301615,1.5526,2444.7,2444.3,4.09106502]
[1747664302268,5.64309518,2444.7,2443.6,5.24777192]
[1747664302479,9.5526,2444.7,2443.7,1.80805638]
[1747664302648,9.5526,2444.7,2443.7,4.21989224]
[1747664302972,4.09115422,2444.3,2443.9,4.09177995]
[1747664303143,4.09142718,2444.2,2443.7,0.13088279]
[1747664303349,9.802,2444.3,2443.7,0.13088279]
[1747664303556,9.802,2444.3,2444.1,4.09146779]
[1747664303868,9.802,2444.3,2444.0,4.09149396]
[1747664304069,9.802,2444.3,2443.8,4.4334505]
[1747664304276,9.802,2444.3,2443.9,4.09176297]
[1747664304567,9.802,2444.3,2443.8,0.34159203]
[1747664304769,4.0908879,2444.5,2444.0,4.09156516]
[1747664304984,11.3882,2445.0,2444.4,4.09088515]
[1747664305272,11.3882,2445.0,2444.3,4.09106789]
[1747664305451,4.09024569,2444.9,2444.0,10.76649503]
[1747664305653,4.09026256,2444.9,2444.3,4.09100107]
[1747664305989,4.09026256,2444.9,2444.0,10.76649503]
[1747664305990,11.3882,2445.0,2444.1,8.0]
[1747664306150,11.3882,2445.0,2444.7,4.09039887]
[1747664306350,15.47819218,2445.0,2444.6,4.09058118]
[1747664306552,11.3882,2445.0,2444.2,2.28581199]
[1747664306877,11.3882,2445.0,2444.7,4.09037148]
[1747664307038,11.3882,2445.0,2444.6,4.09048564]
[1747664307374,11.3882,2445.0,2444.6,4.09051051]
[1747664307574,11.3882,2445.0,2444.7,4.09044993]
[1747664307770,11.3882,2445.0,2444.2,2.28581199]
[1747664308073,4.09079497,2444.6,2444.1,4.09139688]
[1747664308241,4.09079497,2444.6,2444.0,0.85249503]
[1747664308441,0.01129817,2444.7,2444.0,4.94406184]
[1747664308685,4.09093432,2444.5,2444.0,4.09156681]
[1747664308836,4.09115129,2444.3,2443.9,4.09174083]
[1747664309170,13.8768837,2444.5,2444.0,4.09151285]
[1747664309371,13.8768837,2444.5,2444.1,4.09147908]
[1747664309754,9.786,2444.5,2444.0,4.09156934]
[1747664309949,9.786,2444.5,2443.9,4.09171925]
[1747664310187,5.66493934,2444.4,2443.6,1.5194]
[1747664310392,4.0919197,2443.9,2443.3,1.5194]
[1747664310695,9.775,2444.0,2443.4,0.34164795]
[1747664310858,9.775,2444.0,2443.7,4.09206747]
[1747664311366,9.775,2444.0,2443.6,4.09228033]
[1747664311756,9.761,2445.0,2443.6,0.85262723]
[1747664311955,4.09111024,2444.4,2443.9,4.09171158]
[1747664312191,4.09111024,2444.4,2443.9,4.09175275]
[1747664312393,15.40042117,2444.4,2443.9,4.09175275]
[1747664312708,11.3093,2444.4,2443.6,0.85262723]
[1747664312905,15.40036531,2444.4,2443.9,4.09172795]
[1747664313117,15.40034381,2444.4,2443.9,4.09169594]
[1747664313263,11.3093,2444.4,2443.7,4.09203885]
[1747664313459,4.09142314,2444.2,2443.7,4.09203885]
[1747664313708,4.09159425,2444.1,2443.6,4.0922481]
[1747664313862,0.01129817,2444.2,2443.4,0.34164795]
[1747664314065,4.09158111,2444.1,2443.6,4.0922749]
[1747664314266,4.09121267,2444.3,2443.6,4.0922749]
[1747664314466,15.40028531,2444.4,2443.8,4.09192055]
[1747664314699,4.09115395,2444.3,2443.7,4.09208923]
[1747664314902,11.3093,2444.4,2443.4,1.32775274]
[1747664315105,4.09116192,2444.3,2443.7,4.09208448]
[1747664315412,15.40030332,2444.4,2443.4,1.32775274]
[1747664315619,15.40030332,2444.4,2443.8,4.09184983]
[1747664315807,15.40030026,2444.4,2443.7,4.09208466]
[1747664316113,15.40030026,2444.4,2443.7,4.09212469]
[1747664316114,4.09115084,2444.3,2443.7,4.09212469]
[1747664316416,4.09142788,2444.2,2443.6,4.09231029]
[1747664316632,4.09142788,2444.2,2443.4,0.34164795]
[1747664316633,9.769,2444.1,2443.4,0.34164795]
[1747664316921,1.5253,2443.5,2442.9,4.09338616]
[1747664317251,4.09283852,2443.3,2442.8,4.09358444]
[1747664317553,19.468,2443.4,2442.9,4.09343886]
[1747664317701,1.5253,2443.5,2443.2,4.09290769]
[1747664318043,1.5253,2443.5,2443.2,4.09291428]
[1747664318044,19.471,2443.4,2443.2,4.09291428]
[1747664318209,1.5253,2443.5,2442.5,4.09416581]
[1747664318412,9.697,2443.3,2442.3,0.66666667]
[1747664318615,1.5662,2443.0,2442.3,0.66666667]
[1747664318925,9.769,2442.9,2442.3,0.66666667]
[1747664319318,9.769,2442.9,2442.6,4.09389772]
[1747664319724,9.769,2442.9,2442.6,4.09390066]
[1747664320033,9.769,2442.9,2442.6,4.09387135]
[1747664320238,4.39973256,2443.3,2442.6,4.09387135]
[1747664320239,1.5742,2443.4,2442.6,0.40938713]
[1747664320446,19.469,2443.3,2443.0,4.093249]
[1747664320605,9.77,2443.3,2442.6,0.45032127]
[1747664320799,9.699,2443.2,2443.1,4.09305741]
[1747664321000,9.77,2443.6,2443.4,4.09264551]
[1747664321231,9.692,2443.3,2443.2,4.09299279]
[1747664322135,9.692,2443.3,2442.9,1.5106]
[1747664322346,9.692,2443.3,2442.7,4.09371346]
[1747664322510,1.639,2443.2,2442.3,6.32110672]
[1747664322708,13.86418194,2443.1,2442.6,4.09389985]
[1747664322913,9.771,2443.1,2442.7,4.09381462]
[1747664323115,9.771,2443.1,2442.9,4.09347371]
[1747664323334,9.771,2443.1,2442.8,4.0935949]
[1747664323534,13.86427057,2443.1,2442.3,3.65877734]
[1747664323739,4.09350441,2442.9,2442.3,0.66666667]
[1747664323914,9.663,2442.8,2442.4,0.34178783]
[1747664324128,9.663,2442.8,2442.4,4.43604256]
[1747664324335,9.663,2442.8,2442.5,4.09410742]
[1747664324549,9.663,2442.8,2442.5,4.09408223]
[1747664324755,9.663,2442.8,2442.5,4.0940957]
[1747664324959,9.663,2442.8,2442.4,4.43599201]
[1747664325372,13.75667667,2442.8,2442.4,4.09420418]
[1747664325660,13.75669344,2442.8,2442.4,4.09423906]
[1747664325831,1.5807,2443.0,2442.3,0.66666667]
[1747664326020,9.633,2442.9,2442.6,4.09385348]
[1747664326532,13.72655596,2442.9,2442.3,4.76104049]
[1747664326853,9.633,2442.9,2442.5,4.09408934]
[1747664327021,4.09372135,2442.8,2442.3,4.76114458]
[1747664327231,13.72658054,2442.9,2442.4,4.09423629]
[1747664327438,9.633,2442.9,2442.5,4.09415177]
[1747664327775,9.632,2442.8,2442.6,4.09386776]
[1747664328069,9.632,2442.8,2442.5,4.09401528]
[1747664328272,9.632,2442.8,2442.6,4.09399682]
[1747664328481,9.632,2442.8,2442.5,4.09408401]
[1747664329171,9.632,2442.8,2442.3,0.66666667]
[1747664329172,9.632,2442.8,2442.7,4.09383059]
[1747664329356,9.632,2442.8,2442.6,4.09397227]
[1747664329557,1.5807,2443.0,2442.3,4.76114293]
[1747664329758,9.633,2443.1,2443.0,4.09325608]
[1747664330132,9.633,2443.1,2442.3,2.19076667]
[1747664330537,9.633,2443.1,2442.8,4.09349819]
[1747664330766,9.633,2443.1,2442.7,4.09371771]
[1747664330972,9.633,2443.1,2442.3,6.28523075]
[1747664331169,9.633,2443.1,2442.7,4.09368496]
[1747664331376,4.09344867,2443.0,2442.3,1.5241]
[1747664331673,4.0935161,2442.9,2442.5,4.09416416]
[1747664331835,4.0935161,2442.9,2442.5,4.09409558]
[1747664332033,13.7262492,2443.1,2442.5,4.09409558]
[1747664332034,1.5689,2442.7,2442.5,4.09408965]
[1747664332278,9.633,2442.6,2442.5,4.09408965]
[1747664332595,9.633,2442.6,2442.3,4.0944087]
[1747664332753,9.633,2442.6,2442.0,1.5393]
[1747664332953,9.633,2442.6,2442.3,4.0943376]
[1747664333153,9.633,2442.6,2442.4,4.09432752]
[1747664333399,9.633,2442.6,2442.2,4.0945718]
[1747664333556,9.633,2442.6,2442.2,4.09457253]
[1747664334083,9.633,2442.6,2442.3,4.09440344]
[1747664334254,9.633,2442.6,2441.7,1.537]
[1747664334564,4.09429096,2442.5,2441.8,4.09522008]
[1747664334750,13.72707485,2442.6,2442.0,4.09496396]
[1747664334954,4.09417428,2442.5,2442.0,4.09496396]
[1747664335155,9.774,2442.4,2442.0,4.09496396]
[1747664335351,9.774,2442.4,2442.1,4.09481771]
[1747664335557,9.774,2442.4,2442.0,4.09490507]
[1747664336023,13.86837979,2442.4,2442.0,4.09490507]
[1747664336159,9.774,2442.4,2442.0,4.09490507]
[1747664336359,9.774,2442.4,2442.1,4.09482659]
[1747664336796,1.5689,2442.7,2442.4,4.09433041]
[1747664337005,1.5689,2442.7,2441.8,4.0953395]
[1747664337153,9.632,2442.6,2442.0,4.09500409]
[1747664337356,9.632,2442.6,2442.5,4.09416581]
[1747664337591,19.1884,2443.0,2442.3,1.5953]
[1747664337761,1.5104,2443.3,2443.1,4.09316032]
[1747664337962,1.5104,2443.6,2443.5,4.09249028]
[1747664338190,19.408,2443.7,2443.6,4.0923228]
[1747664338405,9.775,2444.2,2443.8,4.09198788]
[1747664338564,9.633,2444.1,2443.8,4.09198788]
[1747664339356,9.633,2444.1,2443.7,4.09206094]
[1747664339592,5.75677884,2444.5,2443.9,4.09178762]
[1747664339830,9.632,2444.3,2444.0,4.09153528]
[1747664341061,11.4409,2444.5,2444.1,4.09148497]
[1747664341275,9.631,2444.4,2444.0,4.09164129]
[1747664341799,4.08989927,2445.1,2443.9,5.64221133]
[1747664342099,1.5993,2445.3,2443.9,5.64221133]
[1747664342100,13.72098476,2445.0,2444.4,4.09085903]
[1747664342255,13.72098476,2445.0,2444.5,4.09079309]
[1747664342462,13.72098476,2445.0,2443.9,1.5504]
[1747664342463,9.631,2445.0,2443.9,1.5504]
[1747664342682,4.09014683,2444.9,2444.3,4.09105466]
[1747664343163,13.72110484,2445.0,2444.0,4.09165302]
[1747664343359,4.08987788,2445.1,2444.6,4.09056978]
[1747664343616,9.631,2445.2,2444.1,4.09148561]
[1747664343917,9.631,2445.2,2444.0,9.629]
[1747664343918,9.628,2445.1,2444.2,5.46335362]
[1747664344130,9.628,2445.0,2444.6,4.09051609]
[1747664344302,9.628,2445.0,2444.5,4.09070623]
[1747664344614,9.628,2445.0,2444.0,1.51]
[1747664344810,9.628,2445.0,2444.1,4.09148561]
[1747664345115,9.628,2445.0,2444.2,4.09131822]
[1747664345310,9.628,2445.0,2444.7,4.09035757]
[1747664345615,11.2283,2445.3,2444.9,4.0901049]
[1747664345813,9.628,2445.2,2444.6,4.09062131]
[1747664345984,9.628,2445.2,2444.3,10.03713182]
[1747664346187,4.08982799,2445.1,2444.6,4.09057307]
[1747664346382,13.71770544,2445.2,2444.7,4.09040231]
[1747664346983,4.08982705,2445.1,2444.6,4.09056098]
[1747664347186,9.628,2445.2,2444.3,9.628]
[1747664347502,9.628,2445.2,2444.3,10.99992993]
[1747664347682,4.09072757,2444.6,2444.1,4.09146689]
[1747664347884,9.626,2444.6,2444.0,1.51]
[1747664348081,9.626,2444.6,2443.7,17.674]
[1747664348082,4.09124178,2444.3,2444.1,0.3415501]
[1747664348340,13.7167266,2444.6,2444.1,4.43294119]
[1747664348483,9.626,2444.6,2444.4,4.09095971]
[1747664348689,9.626,2444.6,2444.2,4.0912462]
[1747664348891,9.626,2444.6,2444.1,0.3415501]
[1747664349120,4.1021445,2444.5,2444.1,0.3415501]
[1747664349436,9.626,2444.6,2444.1,0.3415501]
[1747664349637,11.13,2444.7,2444.1,0.3415501]
[1747664349918,9.625,2444.7,2444.3,1.5967]
[1747664350086,9.624,2444.8,2444.6,4.09064877]
[1747664350287,9.624,2444.8,2444.6,4.0905423]
[1747664350519,9.624,2444.8,2444.7,4.09048144]
[1747664350725,9.624,2445.0,2444.6,4.09058971]
[1747664350890,9.624,2445.0,2444.7,4.09034342]
[1747664351086,9.624,2445.0,2443.8,1.5967]
[1747664351290,1.5338,2444.7,2443.9,1.12237]
[1747664351596,9.63829817,2444.6,2443.6,4.09215624]
[1747664351811,0.55,2444.9,2443.5,1.6148]
[1747664351812,0.21322321,2444.9,2443.5,1.6148]
[1747664352019,9.83722321,2444.9,2444.3,4.09104023]
[1747664352230,4.09040318,2444.8,2444.3,4.09104023]
[1747664352643,4.09064908,2444.6,2444.1,4.09134998]
[1747664352847,0.01129817,2444.5,2443.6,9.627]
[1747664353137,5.6779589,2444.1,2443.6,4.43385269]
[1747664353422,9.626,2444.0,2443.6,4.43385269]
[1747664353609,9.622,2443.9,2443.7,4.09204447]
[1747664353809,9.622,2444.0,2443.8,4.09198788]
[1747664354119,9.622,2444.0,2443.9,4.09182045]
[1747664354523,9.622,2444.0,2443.6,0.34161999]
[1747664354698,15.24577541,2444.0,2443.6,0.34161999]
[1747664355102,9.622,2444.0,2443.9,4.09182045]
[1747664355303,9.622,2444.0,2443.9,4.5010025]
[1747664355601,9.622,2444.0,2443.9,4.09182045]
[1747664355802,9.622,2444.0,2443.6,4.43387077]
[1747664356007,9.622,2444.0,2443.8,4.09189781]
[1747664356322,8.03496035,2444.0,2443.8,4.09189781]
[1747664356829,8.03496035,2444.0,2443.7,4.09210166]
[1747664357024,8.03496035,2444.0,2443.2,11.1821]
[1747664357225,4.09190911,2443.9,2443.4,4.09258533]
[1747664357429,12.12670913,2444.0,2443.5,4.09238774]
[1747664357608,4.09190258,2443.9,2443.4,4.092576]
[1747664357808,4.09203342,2443.8,2443.3,4.09270875]
[1747664358127,4.09203342,2443.8,2443.3,4.09266325]
[1747664358324,12.12665988,2444.0,2443.4,4.09264748]
[1747664358506,4.09191919,2443.9,2443.4,4.09264748]
[1747664359095,4.09200017,2443.8,2443.2,5.64906357]
[1747664359302,1.5312,2443.6,2442.7,1.5956]
[1747664359519,13.71352328,2443.5,2443.1,4.09315124]
[1747664359924,13.71352328,2443.5,2443.0,4.0932413]
[1747664360330,9.621,2443.5,2443.1,4.09312294]
[1747664360630,13.71349411,2443.5,2443.1,4.09304329]
[1747664360835,13.71349411,2443.5,2442.7,1.5956]
[1747664360836,4.09311525,2443.2,2442.7,1.5956]
[1747664361037,4.09330763,2443.1,2442.5,4.09406654]
[1747664361207,4.09330763,2443.1,2442.2,9.627]
[1747664361208,4.09364202,2442.9,2442.2,9.627]
[1747664361407,4.09360417,2442.9,2442.4,4.09426526]
[1747664361610,9.63929817,2442.8,2441.4,0.30511946]
[1747664361810,4.09429498,2442.5,2441.9,4.09515601]
[1747664361999,13.71539786,2442.4,2441.9,4.09509007]
[1747664362204,9.621,2442.4,2442.0,4.09489501]
[1747664362419,9.621,2442.4,2442.1,4.0947174]
[1747664362838,9.621,2442.4,2441.9,4.0950482]
[1747664362839,13.71540435,2442.4,2441.9,4.0950482]
[1747664363037,9.621,2442.4,2441.9,4.0950482]
[1747664363207,9.621,2442.4,2442.0,4.09499516]
[1747664363408,9.621,2442.4,2441.8,4.09530391]
[1747664363732,9.621,2442.4,2442.1,4.09472268]
[1747664364140,9.621,2442.4,2442.2,4.09461263]
[1747664364437,13.71536044,2442.4,2441.9,4.0950257]
[1747664364639,9.621,2442.4,2442.0,4.09488283]
[1747664364940,9.621,2442.4,2442.3,4.09450108]
[1747664365324,27.303,2442.8,2442.5,4.0940997]
[1747664365531,9.621,2442.7,2442.4,4.09424854]
[1747664365728,9.621,2442.7,2441.9,1.5762]
[1747664366036,9.621,2442.7,2442.3,4.09439197]
[1747664366237,13.7148332,2442.7,2442.2,4.09463448]
[1747664366538,13.71490065,2442.7,2441.9,2.14335086]
[1747664366737,13.71490065,2442.7,2442.1,4.09479032]
[1747664366921,13.71490065,2442.7,2441.9,2.14335086]
[1747664367243,13.71490065,2442.7,2442.1,4.09477564]
[1747664367442,4.09440374,2442.4,2441.7,4.09550722]
[1747664367643,4.09414041,2442.6,2441.9,4.09509451]
[1747664367644,4.09454423,2442.3,2441.9,4.09509451]
[1747664367840,9.621,2442.2,2441.8,4.09533558]
[1747664368146,9.621,2442.2,2441.9,4.09510805]
[1747664368342,9.621,2442.2,2441.6,1.5993]
[1747664368509,9.621,2442.2,2442.0,4.0948701]
[1747664369142,9.62,2442.5,2442.3,4.09435564]
[1747664369863,9.62,2442.5,2442.1,4.09482051]
[1747664369864,9.62,2442.5,2442.0,4.09485573]
[1747664370038,9.62,2442.5,2442.2,4.09459422]
[1747664370215,9.62,2442.5,2442.0,4.09493258]
[1747664370560,9.62,2442.5,2441.9,4.09505567]
[1747664370855,13.71428132,2442.5,2441.9,4.09516261]
[1747664371010,9.621,2442.4,2441.8,4.09525932]
[1747664371220,9.621,2442.4,2442.0,4.09490517]
[1747664371457,9.621,2442.4,2441.6,1.5993]
[1747664371622,4.09464145,2442.3,2441.7,4.09550722]
[1747664371819,4.09464145,2442.3,2441.6,1.5993]
[1747664371820,9.621,2442.4,2441.8,4.09525526]
[1747664372020,4.094612,2442.3,2441.9,4.09516754]
[1747664372224,4.09476574,2442.2,2441.6,5.69491837]
[1747664372464,4.09461541,2442.3,2441.8,4.09532231]
[1747664372646,4.09461541,2442.3,2441.9,4.09513191]
[1747664372822,9.621,2442.4,2442.1,4.09483548]
[1747664373023,9.621,2442.4,2442.0,4.09489892]
[1747664373457,13.71533564,2442.4,2442.0,4.09489892]
[1747664373753,13.71537744,2442.4,2442.0,4.09489892]
[1747664373957,9.621,2442.4,2442.0,4.09489892]
[1747664374361,13.71533903,2442.4,2442.0,4.09489892]
[1747664374522,9.621,2442.4,2442.0,4.09489892]
[1747664374725,9.621,2442.4,2442.0,0.81900474]
[1747664375037,9.619,2442.3,2442.1,4.09474955]
[1747664375856,9.619,2442.3,2442.2,4.09466874]
[1747664376566,23.33510444,2442.8,2442.2,4.09466874]
[1747664376567,19.2414,2442.8,2442.5,4.09409579]
[1747664376738,9.617,2442.7,2442.5,4.09409579]
[1747664377262,9.617,2442.7,2442.2,1.6548]
[1747664377453,9.617,2442.7,2442.4,4.09433272]
[1747664377656,13.71086276,2442.7,2442.2,5.7493614]
[1747664377969,9.617,2442.7,2442.5,4.09409523]
[1747664378260,9.617,2442.6,2442.5,4.09416581]
[1747664378450,9.617,2442.6,2442.2,4.09466874]
[1747664378652,9.617,2442.6,2441.9,1.5611]
[1747664378846,9.617,2442.6,2442.4,4.09432711]
[1747664379151,1.657,2443.1,2442.6,4.09399819]
[1747664379348,9.616,2443.0,2442.8,4.09357111]
[1747664379664,1.657,2443.1,2442.9,4.09349543]
[1747664379961,9.616,2443.0,2442.9,4.09349543]
[1747664380261,1.6553,2443.7,2443.3,4.09282527]
[1747664380466,9.615,2443.6,2442.9,0.81871345]
[1747664380631,9.615,2443.6,2443.2,4.09288332]
[1747664380827,9.615,2443.6,2443.2,4.09294914]
[1747664381029,13.7073308,2443.6,2443.2,4.09294914]
[1747664381329,13.70740491,2443.6,2443.1,4.09303274]
[1747664381530,9.615,2443.6,2442.7,1.6163]
[1747664381768,9.615,2443.6,2443.4,4.09256324]
[1747664382131,9.615,2443.6,2443.3,4.09271871]
[1747664382469,9.615,2443.6,2443.4,4.09256227]
[1747664382833,1.6553,2443.7,2443.4,4.09256227]
[1747664383137,9.613,2443.6,2443.4,4.09256227]
[1747664383641,9.622,2443.9,2443.4,0.8185281]
[1747664383966,9.612,2443.8,2443.7,4.09202863]
[1747664384162,9.612,2443.8,2443.4,4.09255858]
[1747664384365,9.612,2443.8,2443.5,4.09246837]
[1747664384666,9.612,2443.8,2443.5,4.09247904]
[1747664384892,9.612,2443.8,2443.5,4.09234588]
[1747664385367,9.612,2443.8,2443.3,5.64622026]
[1747664385666,9.612,2443.8,2443.4,4.0926544]
[1747664385832,13.70403978,2443.8,2443.4,4.0926544]
[1747664386167,9.62,2444.2,2443.7,4.09200831]
[1747664386343,9.609,2444.0,2443.4,0.81855113]
[1747664386546,9.609,2444.0,2443.7,4.09214841]
[1747664386945,9.609,2444.0,2443.6,4.09221768]
[1747664387980,4.09205728,2443.8,2443.3,4.09271573]
[1747664388269,4.10324111,2443.9,2443.5,4.09247523]
[1747664388568,4.09194294,2443.9,2443.5,4.09243032]
[1747664388782,9.609,2444.0,2443.0,1.5406]
[1747664388985,0.56129817,2443.8,2442.9,4.093328]
[1747664389193,4.09259154,2443.5,2443.0,4.09318395]
[1747664389354,9.606,2443.4,2443.0,4.09318395]
[1747664389681,13.6986669,2443.4,2442.9,4.09344106]
[1747664389894,9.606,2443.4,2443.0,4.09319212]
[1747664390187,9.606,2443.4,2443.0,4.09332787]
[1747664390808,4.09302102,2443.2,2442.7,4.09368761]
[1747664390954,1.62,2443.3,2443.0,4.09326557]
[1747664391377,1.62,2443.3,2443.1,4.0931543]
[1747664391554,9.606,2443.4,2443.3,4.09282527]
[1747664391755,9.606,2443.4,2443.1,4.09309019]
[1747664392260,9.603,2443.3,2443.2,4.09299279]
[1747664392450,9.603,2443.3,2443.0,4.09328515]
[1747664392656,9.603,2443.3,2443.2,4.09299279]
[1747664392952,9.619,2443.7,2443.5,4.09245946]
[1747664393257,9.619,2443.7,2443.6,4.0923228]
[1747664393560,19.221,2443.7,2443.6,4.0923228]
[1747664393756,9.602,2443.7,2443.6,4.0923228]
[1747664394292,9.602,2443.7,2443.1,6.11958093]
[1747664394482,9.602,2443.7,2443.2,0.61195809]
[1747664394659,9.602,2443.7,2443.4,4.09261266]
[1747664394989,13.69424595,2443.7,2443.2,4.09291289]
[1747664395168,4.09232326,2443.6,2443.2,4.09291289]
[1747664395686,5.62621694,2443.6,2443.0,4.09326246]
[1747664395990,4.09268295,2443.4,2443.0,4.09326246]
[1747664396212,4.09302243,2443.2,2442.8,5.68938346]
[1747664396412,4.09302243,2443.2,2442.6,4.09392302]
[1747664396413,4.09343753,2443.0,2442.6,4.09397016]
[1747664396617,13.69231046,2443.1,2442.6,4.09397016]
[1747664396817,5.73058277,2443.0,2442.5,4.09406679]
[1747664396983,1.6372,2443.0,2442.6,4.09387583]
[1747664397186,9.599,2443.1,2442.8,4.0936582]
[1747664397382,9.598,2443.2,2442.9,4.09349543]
[1747664397617,19.217,2443.5,2443.4,4.09265777]
[1747664397815,9.598,2443.5,2443.3,4.09273226]
[1747664398129,0.598,2443.5,2443.3,4.09273226]
[1747664398281,0.598,2443.5,2443.4,4.09265777]
[1747664398483,0.598,2443.5,2443.3,4.09272368]
[1747664398909,0.598,2443.5,2442.8,10.01606582]
[1747664399098,0.598,2443.5,2443.2,4.09291564]
[1747664399408,0.598,2443.5,2443.2,4.09296197]
[1747664399803,0.598,2443.5,2443.3,4.09281477]
[1747664399998,0.598,2443.5,2442.9,1.96350658]
[1747664400216,0.598,2443.5,2443.2,4.09287094]
[1747664400485,0.598,2443.5,2443.3,4.09279361]
[1747664400993,9.595,2443.6,2443.4,4.09265777]
[1747664401188,9.595,2443.6,2442.9,1.96350658]
[1747664401392,4.09264779,2443.5,2443.0,4.09323264]
[1747664401590,9.595,2443.6,2442.9,1.96350658]
[1747664401925,13.68737594,2443.6,2443.0,4.09325493]
[1747664402122,4.09260755,2443.5,2443.0,4.09325493]
[1747664402326,4.09260755,2443.5,2442.8,1.6067]
[1747664402627,9.595,2443.6,2443.2,4.09298607]
[1747664402807,13.6873288,2443.6,2443.2,4.09298607]
[1747664403016,4.09261163,2443.5,2443.0,4.09323677]
[1747664403242,4.09329574,2443.1,2442.6,4.09397362]
[1747664403429,9.592,2443.0,2442.5,4.0941177]
[1747664403726,9.592,2443.0,2442.6,4.65807049]
[1747664404059,1.619,2442.9,2442.1,1.577]
[1747664404191,15.56808707,2442.9,2441.6,1.577]
[1747664404505,4.09485276,2442.1,2441.7,0.34188582]
[1747664404690,5.7002395,2441.8,2441.7,0.34188582]
[1747664405040,13.71153767,2441.8,2441.7,0.34188582]
[1747664405233,14.2502395,2441.8,2441.7,0.34188582]
[1747664405528,4.09668168,2441.0,2440.0,1.5786]
[1747664405727,24.86998168,2441.0,2440.0,5.67684384]
[1747664405926,0.55,2440.9,2440.0,1.5786]
[1747664406228,4.09733225,2440.7,2440.1,4.09819233]
[1747664406528,4.09690045,2440.9,2440.2,4.09802475]
[1747664406730,4.09685459,2440.9,2440.2,4.09802475]
[1747664406928,1.5883,2441.0,2440.4,4.09764828]
[1747664407101,9.591,2440.9,2440.5,4.09739589]
[1747664407307,9.591,2440.9,2440.4,4.09762407]
[1747664407601,1.5883,2441.0,2440.5,4.09749787]
[1747664407815,9.591,2440.9,2440.1,0.9775291]
[1747664408018,13.68788679,2440.9,2440.2,4.09792577]
[1747664408218,9.591,2440.9,2440.1,0.9775291]
[1747664408528,9.591,2440.9,2440.3,4.09782664]
[1747664408726,4.09702078,2440.8,2440.3,4.09773963]
[1747664408926,9.591,2440.9,2440.1,0.9775291]
[1747664409233,9.589,2441.0,2440.2,0.66544529]
[1747664409402,9.589,2441.0,2440.1,5.0756578]
[1747664409734,9.589,2440.9,2440.6,4.09735128]
[1747664410033,9.589,2440.9,2440.6,4.09728352]
[1747664410217,9.589,2440.9,2440.4,4.09763026]
[1747664410419,9.589,2440.9,2440.4,4.09755294]
[1747664410820,9.589,2440.9,2440.3,4.09783927]
[1747664410821,9.589,2440.9,2440.5,4.09750419]
[1747664411021,9.59,2440.9,2440.7,4.09708572]
[1747664411330,17.675,2441.2,2440.8,4.09701737]
[1747664411497,9.59,2441.5,2440.8,4.096871]
[1747664411844,11.1515,2441.7,2441.3,4.09614234]
[1747664412005,4.09631366,2441.3,2440.8,4.09699764]
[1747664412209,4.09636077,2441.2,2440.7,4.09710735]
[1747664412394,13.68531795,2441.3,2440.8,4.09699808]
[1747664412600,9.589,2441.3,2441.0,4.09652066]
[1747664412837,9.59,2441.4,2441.1,4.09651079]
[1747664413036,9.59,2441.4,2440.9,4.09684952]
[1747664413212,9.59,2441.4,2441.0,4.09668168]
[1747664413412,9.59,2441.4,2440.6,5.73814302]
[1747664413609,9.59,2441.4,2440.6,2.29656774]
[1747664413798,9.59,2441.4,2441.0,4.09666737]
[1747664414004,13.6860169,2441.4,2440.9,4.09671997]
[1747664414633,9.59,2441.4,2440.6,2.29656774]
[1747664414974,9.588,2441.5,2441.2,4.0962606]
[1747664415098,9.588,2441.5,2441.2,4.09633661]
[1747664415298,9.588,2441.5,2441.1,4.0964269]
[1747664415723,0.55,2441.4,2440.6,1.6408]
[1747664415907,1.6451,2441.1,2440.4,4.09759702]
[1747664416112,4.09691345,2440.9,2440.3,4.09781165]
[1747664416342,9.587,2441.0,2440.3,1.63119407]
[1747664416649,9.587,2441.0,2440.8,4.09692355]
[1747664417213,9.587,2441.0,2440.9,4.09684952]
[1747664418204,9.587,2441.0,2440.3,1.63119407]
[1747664418428,13.68371588,2441.0,2440.5,4.09736113]
[1747664418603,5.62634396,2440.8,2440.2,1.6346]
[1747664418813,1.5293,2440.8,2440.5,4.09751429]
[1747664419013,5.62572201,2441.2,2440.7,4.09710672]
[1747664419213,9.585,2441.1,2440.5,0.40975143]